[Event "Torneo Nuevo Centro. Jornada 11"]
[Site "Chess.com"]
[Date "2020.08.28"]
[Round "8"]
[White "Ortiz Benavent, Alba"]
[Black "Bercaru, Vlad Ionut"]
[Result "1/2-1/2"]
[WhiteElo "1205"]
[BlackElo "1707"]
[TimeControl "180+2"]
[EndTime "11:56:25 PDT"]
[Termination "Tablas por repeticiÃ³n"]

1. d4 {[%clk 0:03:01.9]} 1... Nf6 {[%clk 0:02:59.5]} 2. Nf3 {[%clk 0:03:02.6]}
2... g6 {[%clk 0:02:57.8]} 3. Bf4 {[%clk 0:03:02.1]} 3... Bg7 {[%clk 0:02:58.9]}
4. e3 {[%clk 0:03:03.2]} 4... d6 {[%clk 0:02:59.6]} 5. Be2 {[%clk 0:03:04.3]}
5... O-O {[%clk 0:02:58.6]} 6. O-O {[%clk 0:03:04.3]} 6... Nbd7 {[%clk
0:02:59.9]} 7. Nbd2 {[%clk 0:03:03.2]} 7... b6 {[%clk 0:03:00.8]} 8. c3 {[%clk
0:03:04]} 8... Bb7 {[%clk 0:03:01.6]} 9. Re1 {[%clk 0:02:59.6]} 9... Ne4 {[%clk
0:03:02]} 10. Nxe4 {[%clk 0:02:58.2]} 10... Bxe4 {[%clk 0:03:03.3]} 11. Nd2
{[%clk 0:02:48.5]} 11... Bb7 {[%clk 0:03:01.7]} 12. Bf3 {[%clk 0:02:47.1]} 12...
Qc8 {[%clk 0:03:02.4]} 13. Bxb7 {[%clk 0:02:45.8]} 13... Qxb7 {[%clk 0:03:03.7]}
14. Qf3 {[%clk 0:02:46.4]} 14... Qxf3 {[%clk 0:03:01.8]} 15. Nxf3 {[%clk
0:02:45.6]} 15... e5 {[%clk 0:03:03.1]} 16. Bg3 {[%clk 0:02:39.9]} 16... e4
{[%clk 0:02:56]} 17. Nd2 {[%clk 0:02:36.6]} 17... f5 {[%clk 0:02:56.8]} 18. f3
{[%clk 0:02:36.9]} 18... Nf6 {[%clk 0:02:52.4]} 19. fxe4 {[%clk 0:02:28.9]}
19... Nxe4 {[%clk 0:02:50.9]} 20. Nxe4 {[%clk 0:02:27.9]} 20... fxe4 {[%clk
0:02:52.8]} 21. Rf1 {[%clk 0:02:24.8]} 21... Bh6 {[%clk 0:02:52.3]} 22. Bf4
{[%clk 0:02:14.1]} 22... Bxf4 {[%clk 0:02:49.2]} 23. Rxf4 {[%clk 0:02:12]} 23...
Rxf4 {[%clk 0:02:49.8]} 24. exf4 {[%clk 0:02:12.2]} 24... d5 {[%clk 0:02:51]}
25. g3 {[%clk 0:02:09.5]} 25... Kf7 {[%clk 0:02:51.1]} 26. Kf2 {[%clk
0:02:07.4]} 26... c5 {[%clk 0:02:51.3]} 27. dxc5 {[%clk 0:02:04.9]} 27... bxc5
{[%clk 0:02:53.2]} 28. Rd1 {[%clk 0:02:04.7]} 28... Ke6 {[%clk 0:02:53.1]} 29.
Ke3 {[%clk 0:01:59.9]} 29... Rb8 {[%clk 0:02:52]} 30. b3 {[%clk 0:02:00.2]}
30... Rd8 {[%clk 0:02:14]} 31. Rd2 {[%clk 0:01:45.9]} 31... Kf5 {[%clk
0:02:06.3]} 32. h3 {[%clk 0:01:43]} 32... h5 {[%clk 0:02:05.9]} 33. Rd1 {[%clk
0:01:38.7]} 33... a5 {[%clk 0:02:04.3]} 34. Rd2 {[%clk 0:01:28.5]} 34... Rd6
{[%clk 0:02:02.8]} 35. Rd1 {[%clk 0:01:26]} 35... Ke6 {[%clk 0:01:49.8]} 36. Rd2
{[%clk 0:01:25.9]} 36... Ra6 {[%clk 0:01:43.1]} 37. c4 {[%clk 0:01:21]} 37...
Rd6 {[%clk 0:01:38.3]} 38. cxd5+ {[%clk 0:01:15]} 38... Rxd5 {[%clk 0:01:36.5]}
39. Rxd5 {[%clk 0:01:11.9]} 39... Kxd5 {[%clk 0:01:38.4]} 40. g4 {[%clk
0:01:02.3]} 40... h4 {[%clk 0:01:35.2]} 41. f5 {[%clk 0:00:56.5]} 41... gxf5
{[%clk 0:01:31.9]} 42. gxf5 {[%clk 0:00:56.5]} 42... Ke5 {[%clk 0:01:31.9]} 43.
f6 {[%clk 0:00:56]} 43... Kxf6 {[%clk 0:01:32.3]} 44. Kxe4 {[%clk 0:00:56.7]}
44... Ke6 {[%clk 0:01:33.1]} 45. Kf4 {[%clk 0:00:54.1]} 45... a4 {[%clk
0:01:31.8]} 46. Kg4 {[%clk 0:00:46.6]} 46... axb3 {[%clk 0:01:28.1]} 47. axb3
{[%clk 0:00:46.5]} 47... Kd5 {[%clk 0:01:24.5]} 48. Kxh4 {[%clk 0:00:47.4]}
48... Kd4 {[%clk 0:01:26.4]} 49. Kg5 {[%clk 0:00:48.4]} 49... Kc3 {[%clk
0:01:28.3]} 50. h4 {[%clk 0:00:49.8]} 50... Kxb3 {[%clk 0:01:30.2]} 51. h5
{[%clk 0:00:50.3]} 51... c4 {[%clk 0:01:32.1]} 52. h6 {[%clk 0:00:51.5]} 52...
c3 {[%clk 0:01:34]} 53. h7 {[%clk 0:00:52.7]} 53... c2 {[%clk 0:01:35.9]} 54.
h8=Q {[%clk 0:00:50.7]} 54... c1=Q+ {[%clk 0:01:37.8]} 55. Kg6 {[%clk
0:00:50.9]} 55... Qg1+ {[%clk 0:01:37]} 56. Kh7 {[%clk 0:00:50.7]} 56... Qh2+
{[%clk 0:01:37.3]} 57. Kg8 {[%clk 0:00:51.7]} 57... Qg3+ {[%clk 0:01:37.3]} 58.
Kh7 {[%clk 0:00:52.7]} 58... Qh4+ {[%clk 0:01:37.5]} 59. Kg8 {[%clk 0:00:54.1]}
59... Qg5+ {[%clk 0:01:37.9]} 60. Kh7 {[%clk 0:00:55.7]} 60... Qh5+ {[%clk
0:01:37.2]} 61. Kg8 {[%clk 0:00:57.3]} 61... Qe8+ {[%clk 0:01:36.9]} 62. Kh7
{[%clk 0:00:58.9]} 62... Qf7+ {[%clk 0:01:33.7]} 63. Qg7 {[%clk 0:00:54.6]}
63... Qf5+ {[%clk 0:01:33.3]} 64. Kh8 {[%clk 0:00:55.5]} 64... Qh3+ {[%clk
0:01:29.8]} 65. Kg8 {[%clk 0:00:56.6]} 65... Qc8+ {[%clk 0:01:29.1]} 66. Kh7
{[%clk 0:00:57.3]} 66... Qh3+ {[%clk 0:01:29.4]} 67. Kg8 {[%clk 0:00:58.4]}
67... Qc8+ {[%clk 0:01:27]} 68. Kh7 {[%clk 0:00:59.9]} 68... Qh3+ {[%clk
0:01:27.6]} 69. Kg8 {[%clk 0:01:01.5]} 1/2-1

[Event "Torneo Nuevo Centro. Jornada 11"]
[Site "Chess.com"]
[Date "2020.08.28"]
[Round "8"]
[White "Macias Pino, Diego"]
[Black "Gil López, Alejandro"]
[Result "1-0"]
[WhiteElo "2262"]
[BlackElo "2195"]
[TimeControl "180+2"]
[EndTime "11:57:11 PDT"]
[Termination "Victoria de adivinaquiensoy por abandono"]

1. d4 {[%clk 0:03:01.9]} 1... e5 {[%clk 0:03:00.1]} 2. dxe5 {[%clk 0:02:58.6]}
2... d6 {[%clk 0:03:01.6]} 3. Bf4 {[%clk 0:02:49.2]} 3... Nc6 {[%clk 0:03:02.3]}
4. exd6 {[%clk 0:02:49.7]} 4... Qf6 {[%clk 0:02:52.6]} 5. Qc1 {[%clk 0:02:38.9]}
5... Bxd6 {[%clk 0:02:52.1]} 6. Bxd6 {[%clk 0:02:39.2]} 6... Qxd6 {[%clk
0:02:54]} 7. Nf3 {[%clk 0:02:33.8]} 7... Bg4 {[%clk 0:02:54.6]} 8. e3 {[%clk
0:02:25.6]} 8... O-O-O {[%clk 0:02:54.6]} 9. Be2 {[%clk 0:02:22.6]} 9... Nf6
{[%clk 0:02:52.3]} 10. Nbd2 {[%clk 0:02:18.2]} 10... h5 {[%clk 0:02:50.4]} 11.
h3 {[%clk 0:02:13.1]} 11... Bf5 {[%clk 0:02:46.4]} 12. c3 {[%clk 0:02:13.9]}
12... Ne5 {[%clk 0:02:44.9]} 13. Nxe5 {[%clk 0:02:12.4]} 13... Qxe5 {[%clk
0:02:46.8]} 14. Nf3 {[%clk 0:02:10]} 14... Qe4 {[%clk 0:02:44.5]} 15. O-O {[%clk
0:01:43.6]} 15... Rdg8 {[%clk 0:02:43.7]} 16. Ng5 {[%clk 0:01:38.5]} 16... Qe7
{[%clk 0:02:37.7]} 17. Bc4 {[%clk 0:01:38]} 17... Be6 {[%clk 0:02:23]} 18. Bxe6+
{[%clk 0:01:33.1]} 18... fxe6 {[%clk 0:02:24.9]} 19. e4 {[%clk 0:01:32.9]} 19...
Nh7 {[%clk 0:02:19.3]} 20. Nxh7 {[%clk 0:01:29]} 20... Rxh7 {[%clk 0:02:14.8]}
21. Qe3 {[%clk 0:01:29.6]} 21... g5 {[%clk 0:02:09.3]} 22. Qxa7 {[%clk
0:01:26.4]} 22... Rd8 {[%clk 0:02:08.7]} 23. Rad1 {[%clk 0:01:23.7]} 23... c6
{[%clk 0:02:03.7]} 24. a4 {[%clk 0:01:13.7]} 24... g4 {[%clk 0:01:43.9]} 25. a5
{[%clk 0:00:30.3]} 25... Rxd1 {[%clk 0:00:50.5]} 26. Rxd1 {[%clk 0:00:32.2]}
26... gxh3 {[%clk 0:00:52.2]} 27. a6 {[%clk 0:00:31.2]} 27... bxa6 {[%clk
0:00:53]} 28. Qa8+ {[%clk 0:00:26.4]} 28... Kc7 {[%clk 0:00:52.3]} 29. Qa7+
{[%clk 0:00:27]} 29... Kc8 {[%clk 0:00:51.8]} 30. Qxa6+ {[%clk 0:00:24.8]} 30...
Qb7 {[%clk 0:00:27.3]} 31. Qa2 {[%clk 0:00:25.6]} 31... Re7 {[%clk 0:00:17.4]}
32. gxh3 {[%clk 0:00:17]} 32... Kc7 {[%clk 0:00:12.9]} 33. Qa5+ {[%clk
0:00:14.1]} 33... Qb6 {[%clk 0:00:11.6]} 34. Qe5+ {[%clk 0:00:15.1]} 34... Kb7
{[%clk 0:00:12]} 35. b4 {[%clk 0:00:16.3]} 35... Rf7 {[%clk 0:00:11.8]} 36. Rd4
{[%clk 0:00:15.6]} 36... Re7 {[%clk 0:00:09.2]} 37. Qg5 {[%clk 0:00:12.5]} 37...
Rf7 {[%clk 0:00:07.3]} 38. Qg6 {[%clk 0:00:12.7]} 38... Re7 {[%clk 0:00:07.7]}
39. Qf6 {[%clk 0:00:13.9]} 39... Qc7 {[%clk 0:00:08.9]} 40. Kf1 {[%clk
0:00:11.2]} 40... Rf7 {[%clk 0:00:07.3]} 41. Qg5 {[%clk 0:00:10.1]} 41... Qh2
{[%clk 0:00:06.6]} 42. Qg2 {[%clk 0:00:09.7]} 42... Qf4 {[%clk 0:00:04.8]} 43.
Rd1 {[%clk 0:00:09]} 43... Qf6 {[%clk 0:00:04.7]} 44. b5 {[%clk 0:00:06.5]}
44... Qxc3 {[%clk 0:00:04.9]} 45. bxc6+ {[%clk 0:00:04.9]} 45... Qxc6 {[%clk
0:00:04.5]} 46. Rb1+ {[%clk 0:00:04.8]} 46... Kc7 {[%clk 0:00:05.8]} 47. Kg1
{[%clk 0:00:05.6]} 47... Qd7 {[%clk 0:00:05.3]} 48. Kh1 {[%clk 0:00:04.7]} 48...
Rg7 {[%clk 0:00:05.5]} 49. Qf3 {[%clk 0:00:06.1]} 49... Qd6 {[%clk 0:00:06]} 50.
Rc1+ {[%clk 0:00:06.3]} 50... Kd7 {[%clk 0:00:06.9]} 51. Rd1 {[%clk 0:00:07]}
51... Ke7 {[%clk 0:00:06.5]} 52. Rxd6 {[%clk 0:00:07.6]} 52... Kxd6 {[%clk
0:00:08.4]} 53. e5+ {[%clk 0:00:08.6]} 53... Kd7 {[%clk 0:00:07.3]} 54. Qb7+
{[%clk 0:00:08.5]} 1

[Event "Torneo Nuevo Centro. Jornada 11"]
[Site "Chess.com"]
[Date "2020.08.28"]
[Round "8"]
[White "Rodriguez Rodriguez, Joan David "]
[Black "Yuste Valenzuela, Alejandro"]
[Result "0-1"]
[WhiteElo "1779"]
[BlackElo "1888"]
[TimeControl "180+2"]
[EndTime "11:57:23 PDT"]
[Termination "Victoria de alejandrito290 por abandono"]

1. d4 {[%clk 0:03:01.9]} 1... Nf6 {[%clk 0:03:01]} 2. c4 {[%clk 0:03:02.4]} 2...
g6 {[%clk 0:03:02]} 3. Nc3 {[%clk 0:03:03.5]} 3... Bg7 {[%clk 0:03:03.4]} 4. e4
{[%clk 0:03:05.1]} 4... d6 {[%clk 0:03:04.8]} 5. Nf3 {[%clk 0:03:06.5]} 5... O-O
{[%clk 0:03:06.2]} 6. Be2 {[%clk 0:03:07.6]} 6... e5 {[%clk 0:03:07.6]} 7. dxe5
{[%clk 0:03:08.5]} 7... dxe5 {[%clk 0:03:08]} 8. Qxd8 {[%clk 0:03:10.4]} 8...
Rxd8 {[%clk 0:03:09.6]} 9. Bg5 {[%clk 0:03:03.7]} 9... Re8 {[%clk 0:03:10]} 10.
Nd5 {[%clk 0:02:58.4]} 10... Nxd5 {[%clk 0:03:06.5]} 11. cxd5 {[%clk 0:03:00.3]}
11... Na6 {[%clk 0:02:54.9]} 12. a3 {[%clk 0:02:58.6]} 12... Nc5 {[%clk
0:02:50.2]} 13. Nd2 {[%clk 0:02:57.6]} 13... b6 {[%clk 0:02:48.3]} 14. O-O
{[%clk 0:02:52]} 14... h6 {[%clk 0:02:45.5]} 15. Be3 {[%clk 0:02:49.6]} 15...
Ba6 {[%clk 0:02:19.2]} 16. Bxa6 {[%clk 0:02:39.4]} 16... Nxa6 {[%clk 0:02:21.1]}
17. Rac1 {[%clk 0:02:40.1]} 17... Rac8 {[%clk 0:02:17.5]} 18. b4 {[%clk
0:02:37]} 18... Nb8 {[%clk 0:02:08.3]} 19. b5 {[%clk 0:02:19.4]} 19... Nd7
{[%clk 0:02:02.5]} 20. Nb3 {[%clk 0:02:19.9]} 20... f5 {[%clk 0:02:01.4]} 21. f3
{[%clk 0:02:19.4]} 21... fxe4 {[%clk 0:01:45.8]} 22. fxe4 {[%clk 0:02:21.3]}
22... Nf6 {[%clk 0:01:46.4]} 23. Nd2 {[%clk 0:02:00.7]} 23... Ng4 {[%clk
0:01:46.3]} 24. Bf2 {[%clk 0:01:45.3]} 24... Nxf2 {[%clk 0:01:46.6]} 25. Rxf2
{[%clk 0:01:47.2]} 25... Bf8 {[%clk 0:01:44.9]} 26. a4 {[%clk 0:01:39.4]} 26...
Bc5 {[%clk 0:01:44.8]} 27. Rf1 {[%clk 0:01:30.2]} 27... Bxf2+ {[%clk 0:01:43.4]}
28. Rxf2 {[%clk 0:01:32.1]} 28... Rf8 {[%clk 0:01:42.7]} 29. Nf3 {[%clk
0:01:33.1]} 29... Rce8 {[%clk 0:01:40.2]} 30. Rc2 {[%clk 0:01:33.8]} 30... Rf7
{[%clk 0:01:38.9]} 31. Rc6 {[%clk 0:01:34.6]} 31... Kg7 {[%clk 0:01:38.6]} 32.
h4 {[%clk 0:01:32]} 32... Ree7 {[%clk 0:01:33.5]} 33. Kf2 {[%clk 0:01:04.4]}
33... Rf4 {[%clk 0:01:18.7]} 34. Ke3 {[%clk 0:00:41.5]} 34... Rg4 {[%clk
0:01:18.3]} 35. Rc2 {[%clk 0:00:41.8]} 35... g5 {[%clk 0:01:02.9]} 36. hxg5
{[%clk 0:00:39]} 36... hxg5 {[%clk 0:01:04.8]} 37. Rd2 {[%clk 0:00:27.6]} 37...
Kf7 {[%clk 0:00:55]} 38. Rc2 {[%clk 0:00:21.6]} 38... Ke8 {[%clk 0:00:54.8]} 39.
Kf2 {[%clk 0:00:17.9]} 39... Rxe4 {[%clk 0:00:51.3]} 40. Rc6 {[%clk 0:00:15.8]}
40... g4 {[%clk 0:00:46.4]} 41. Ng5 {[%clk 0:00:14.7]} 41... Rd4 {[%clk
0:00:41.8]} 42. Rh6 {[%clk 0:00:11.6]} 42... Rxd5 {[%clk 0:00:39.3]} 43. Ne6
{[%clk 0:00:07.3]} 43... Rd6 {[%clk 0:00:24.3]} 44. Nxc7+ {[%clk 0:00:05.6]}
44... Kd7 {[%clk 0:00:21.4]} 45. Rxd6+ {[%clk 0:00:03]} 45... Kxd6 {[%clk
0:00:23.3]} 46. Na6 {[%clk 0:00:04.4]} 46... Kd5 {[%clk 0:00:18.9]} 47. Nb4+
{[%clk 0:00:05.8]} 47... Kc4 {[%clk 0:00:19.8]} 48. Nc2 {[%clk 0:00:06.1]} 48...
Rd7 {[%clk 0:00:21.4]} 49. Kg3 {[%clk 0:00:06.3]} 49... Rd2 {[%clk 0:00:20.2]}
50. Ne3+ {[%clk 0:00:04.3]} 50... Kb4 {[%clk 0:00:21.3]} 51. Kxg4 {[%clk
0:00:04.7]} 51... Kxa4 {[%clk 0:00:20.5]} 52. Nf1 {[%clk 0:00:02.4]} 52... Rxg2+
{[%clk 0:00:20.3]} 53. Kf3 {[%clk 0:00:04]} 53... Rb2 {[%clk 0:00:20.3]} 54. Ke4
{[%clk 0:00:05.3]} 54... Rxb5 {[%clk 0:00:19.5]} 55. Ne3 {[%clk 0:00:06.2]}
55... Rb4+ {[%clk 0:00:19.9]} 56. Kxe5 {[%clk 0:00:07.7]} 56... Kb3 {[%clk
0:00:20.3]} 57. Nd5 {[%clk 0:00:07.2]} 57... Rb5 {[%clk 0:00:21.2]} 58. Kd4
{[%clk 0:00:08.4]} 58... Rxd5+ {[%clk 0:00:22]} 59. Kxd5 {[%clk 0:00:10.3]}
59... a5 {[%clk 0:00:23.6]} 60. Kd4 {[%clk 0:00:12.2]} 60... a4 {[%clk
0:00:24.3]} 61. Kd3 {[%clk 0:00:14.1]} 61... Kb2 {[%clk 0:00:25.5]} 62. Kd2
{[%clk 0:00:16]} 62... a3 {[%clk 0:00:26.6]} 0

[Event "Torneo Nuevo Centro. Jornada 11"]
[Site "Chess.com"]
[Date "2020.08.28"]
[Round "8"]
[White "Serrano Requena, Guillem"]
[Black "Bascuñana Sánchez, Pablo"]
[Result "1-0"]
[WhiteElo "1360"]
[BlackElo "1656"]
[TimeControl "180+2"]
[EndTime "11:58:35 PDT"]
[Termination "Victoria de Guily351 por jaque mate"]

1. d4 {[%clk 0:03:01.9]} 1... Nf6 {[%clk 0:03:00.2]} 2. Bg5 {[%clk 0:03:02.1]}
2... c5 {[%clk 0:02:58.5]} 3. Bxf6 {[%clk 0:03:02.5]} 3... gxf6 {[%clk
0:02:57.5]} 4. e3 {[%clk 0:03:01.6]} 4... Bg7 {[%clk 0:02:53.8]} 5. g3 {[%clk
0:03:01.2]} 5... Nc6 {[%clk 0:02:49.8]} 6. Bg2 {[%clk 0:02:59.5]} 6... d6 {[%clk
0:02:47.2]} 7. c3 {[%clk 0:02:59.6]} 7... f5 {[%clk 0:02:42.3]} 8. Ne2 {[%clk
0:02:59.7]} 8... O-O {[%clk 0:02:41]} 9. O-O {[%clk 0:02:59.4]} 9... cxd4 {[%clk
0:02:37.7]} 10. cxd4 {[%clk 0:02:59.4]} 10... e5 {[%clk 0:02:36.8]} 11. Nbc3
{[%clk 0:02:55.9]} 11... e4 {[%clk 0:02:30.7]} 12. Nf4 {[%clk 0:02:47.5]} 12...
Be6 {[%clk 0:02:20.3]} 13. d5 {[%clk 0:02:43.9]} 13... Bd7 {[%clk 0:02:04.3]}
14. dxc6 {[%clk 0:02:42.6]} 14... Bxc6 {[%clk 0:02:04.9]} 15. Rc1 {[%clk
0:02:29.4]} 15... Rc8 {[%clk 0:01:56.8]} 16. Bh3 {[%clk 0:02:19.8]} 16... Qf6
{[%clk 0:01:51]} 17. Ncd5 {[%clk 0:02:10.6]} 17... Bxd5 {[%clk 0:01:42]} 18.
Nxd5 {[%clk 0:02:09.8]} 18... Qe6 {[%clk 0:01:39]} 19. Bxf5 {[%clk 0:02:00]}
19... Qe5 {[%clk 0:01:32.8]} 20. Bxc8 {[%clk 0:01:57.6]} 20... Qxb2 {[%clk
0:01:26.2]} 21. Rb1 {[%clk 0:01:54.7]} 21... Qxa2 {[%clk 0:01:25.4]} 22. Ne7+
{[%clk 0:01:48.4]} 22... Kh8 {[%clk 0:01:25.4]} 23. Bf5 {[%clk 0:01:25.7]} 23...
b6 {[%clk 0:01:14.2]} 24. Qh5 {[%clk 0:00:51.1]} 24... h6 {[%clk 0:01:10.9]} 25.
Ra1 {[%clk 0:00:29.6]} 25... Qb2 {[%clk 0:01:00.1]} 26. Rxa7 {[%clk 0:00:21.8]}
26... Qf6 {[%clk 0:00:55.5]} 27. Nd5 {[%clk 0:00:17.4]} 27... Qe5 {[%clk
0:00:54.5]} 28. Rxf7 {[%clk 0:00:12.7]} 28... Qxd5 {[%clk 0:00:52.6]} 29. Rxf8+
{[%clk 0:00:12.3]} 29... Bxf8 {[%clk 0:00:52.7]} 30. Qg6 {[%clk 0:00:12.8]}
30... Qg8 {[%clk 0:00:51.9]} 31. Qxg8+ {[%clk 0:00:13.1]} 31... Kxg8 {[%clk
0:00:53.3]} 32. Rb1 {[%clk 0:00:13.2]} 32... d5 {[%clk 0:00:52.5]} 33. Rxb6
{[%clk 0:00:10.7]} 33... Kf7 {[%clk 0:00:48.2]} 34. Be6+ {[%clk 0:00:10.8]}
34... Kf6 {[%clk 0:00:46.7]} 35. Bxd5+ {[%clk 0:00:11]} 35... Ke5 {[%clk
0:00:47.4]} 36. Ba2 {[%clk 0:00:09.7]} 36... Kf5 {[%clk 0:00:44.5]} 37. Rb8
{[%clk 0:00:05.6]} 37... Bg7 {[%clk 0:00:44.5]} 38. Rg8 {[%clk 0:00:05.7]} 38...
Bf6 {[%clk 0:00:44.8]} 39. Bd5 {[%clk 0:00:04.8]} 39... Ke5 {[%clk 0:00:44.3]}
40. Ba8 {[%clk 0:00:04.9]} 40... Kf5 {[%clk 0:00:44.1]} 41. Re8 {[%clk
0:00:04.9]} 41... Be5 {[%clk 0:00:45.2]} 42. Bxe4+ {[%clk 0:00:02.3]} 42... Kxe4
{[%clk 0:00:44.9]} 43. Kg2 {[%clk 0:00:03.7]} 43... Kf5 {[%clk 0:00:45.4]} 44.
f3 {[%clk 0:00:03.1]} 44... h5 {[%clk 0:00:45]} 45. e4+ {[%clk 0:00:04.1]} 45...
Kf6 {[%clk 0:00:45.1]} 46. f4 {[%clk 0:00:05.1]} 46... Bd4 {[%clk 0:00:45.6]}
47. e5+ {[%clk 0:00:05.8]} 47... Kf7 {[%clk 0:00:46.4]} 48. Rd8 {[%clk
0:00:06.3]} 48... Bb6 {[%clk 0:00:46.1]} 49. Rh8 {[%clk 0:00:06.9]} 49... Kg6
{[%clk 0:00:45.5]} 50. Rg8+ {[%clk 0:00:07.4]} 50... Kf5 {[%clk 0:00:44.8]} 51.
Rg5+ {[%clk 0:00:05.6]} 51... Ke4 {[%clk 0:00:43.7]} 52. Rxh5 {[%clk 0:00:06.5]}
52... Bd8 {[%clk 0:00:43.1]} 53. Rh6 {[%clk 0:00:06.6]} 53... Kf5 {[%clk
0:00:42.8]} 54. e6 {[%clk 0:00:05.5]} 54... Be7 {[%clk 0:00:43.4]} 55. h4 {[%clk
0:00:05.4]} 55... Bf6 {[%clk 0:00:43]} 56. Kf3 {[%clk 0:00:05.8]} 56... Kxe6
{[%clk 0:00:41.9]} 57. g4 {[%clk 0:00:06.6]} 57... Ke7 {[%clk 0:00:41.5]} 58.
Rxf6 {[%clk 0:00:06.9]} 58... Kxf6 {[%clk 0:00:42.3]} 59. h5 {[%clk 0:00:07.7]}
59... Kg7 {[%clk 0:00:42.7]} 60. g5 {[%clk 0:00:08.6]} 60... Kf7 {[%clk
0:00:43.4]} 61. Kg4 {[%clk 0:00:09.4]} 61... Kg7 {[%clk 0:00:43.9]} 62. f5
{[%clk 0:00:10.2]} 62... Kf7 {[%clk 0:00:44.8]} 63. h6 {[%clk 0:00:10.9]} 63...
Kg8 {[%clk 0:00:45.3]} 64. Kh5 {[%clk 0:00:11.6]} 64... Kh7 {[%clk 0:00:45.5]}
65. g6+ {[%clk 0:00:12]} 65... Kg8 {[%clk 0:00:46]} 66. f6 {[%clk 0:00:12.4]}
66... Kh8 {[%clk 0:00:45.3]} 67. g7+ {[%clk 0:00:10.6]} 67... Kg8 {[%clk
0:00:45.1]} 68. f7+ {[%clk 0:00:07.6]} 68... Kxf7 {[%clk 0:00:45.4]} 69. Kg5
{[%clk 0:00:08.5]} 69... Kg8 {[%clk 0:00:45.7]} 70. Kf6 {[%clk 0:00:09.3]} 70...
Kh7 {[%clk 0:00:40.3]} 71. Kf7 {[%clk 0:00:10.1]} 71... Kxh6 {[%clk 0:00:41.1]}
72. g8=Q {[%clk 0:00:10.2]} 72... Kh5 {[%clk 0:00:42.2]} 73. Kf6 {[%clk
0:00:09.1]} 73... Kh4 {[%clk 0:00:42.8]} 74. Kf5 {[%clk 0:00:09.7]} 74... Kh3
{[%clk 0:00:42.2]} 75. Kf4 {[%clk 0:00:10.3]} 75... Kh4 {[%clk 0:00:43.5]} 76.
Qg4# {[%clk 0:00:10.2]} 1